Cogmind - Beta 13 X1 @@@ ROGUE MODE // 2023.09.23 @ 10:24:28 Player: f3-rnm Result: Destroyed by WQ-YUC(R) with Subdweller Laser Performance ------------- Evolutions (0) 0 Regions Visited (3) 600 Robots Destroyed (29) 145 Value Destroyed (795) 795 Prototype IDs (0) 0 Alien Tech Used (0) 0 Bonus (-11) -11 TOTAL SCORE: 1529 Bonus ------- Follower Combat Kills 21 Friendly Fire -32 Cogmind --------- Core Integrity 0/250 Matter 120/300 Energy 99/100 System Corruption 0% Temperature Cool (6) Movement Core (50) Location -10/Subcaves Parts ------- > --- POWER (1) -------- (None) > --- PROPULSION (2) --- (None) > --- UTILITY (2) ------ (None) > --- WEAPON (2) ------- Makeshift Spear > --- INVENTORY (5) ---- Makeshift Power Source Subdweller Shrapnel Launcher Peak State ------------ > --- POWER ------------ Light Ion Engine > --- PROPULSION ------- Light Treads Light Treads > --- UTILITY ---------- Huge Storage Unit Propulsion Shielding > --- WEAPON ----------- Heavy EM Pulse Gun Heavy EM Pulse Gun > --- INVENTORY -------- Light Nuclear Core Makeshift Power Source Wheel Heat Sink Improved Heat Sink Improved Heat Sink Huge Storage Unit Sensor Array Experimental Sensor Array Signal Interpreter Improved Targeting Computer ECM Suite Propulsion Shielding Heavy EM Pulse Gun Heavy EM Pulse Gun Medium Laser Assault Rifle Light Assault Rifle Heavy Battle Rifle Flail [Rating: 13] Favorites ----------- Power Light Ion Engine Engine Light Ion Engine Propulsion Light Treads Treads Light Treads Wheel Wheel Utility Huge Storage Unit Storage Huge Storage Unit Processor Transport Network Coupler Protection Scrap Shield Weapon Medium Laser Energy Gun Medium Laser Ballistic Gun Makeshift Shrapnel Gun Launcher Subdweller Shrapnel Launcher Impact Weapon Flail Piercing Weapon Makeshift Spear Build | -11 -10 -10 -10 ------- Run | Jun Mat Min Sub Slots Evolved . | . . . . Power . | . . . . Propulsion . | . . . . Utility . | . . . . Weapon . | . . . . Parts Attached 33 | 6 8 1 18 Power 4 | 1 1 1 1 Engine 4 | 1 1 1 1 Core . | . . . . Reactor . | . . . . Propulsion 4 | 2 . . 2 Treads 3 | 2 . . 1 Leg . | . . . . Wheel 1 | . . . 1 Hover . | . . . . Flight . | . . . . Utility 6 | 1 3 . 2 Device . | . . . . Storage 2 | 1 1 . . Processor 1 | . 1 . . Hackware . | . . . . Protection 3 | . 1 . 2 Artifact . | . . . . Weapon 19 | 2 4 . 13 Energy Gun 14 | 2 4 . 8 Energy Cannon . | . . . . Ballistic Gun 1 | . . . 1 Ballistic Cannon . | . . . . Launcher 2 | . . . 2 Special Weapon . | . . . . Impact Weapon 1 | . . . 1 Slashing Weapon . | . . . . Piercing Weapon 1 | . . . 1 Special Melee Weapon . | . . . . Unidentified Prototypes . | . . . . Parts Lost 15 | . 2 . 13 Power 3 | . 1 . 2 Propulsion 4 | . . . 4 Utility 1 | . . . 1 Weapon 7 | . 1 . 6 Highest Loss Streak 8 | . 1 . 8 To Critical Strikes 1 | . . . 1 Average Slot Usage (%) 91 | . 94 98 84 Engine 12 | . 9 12 13 Treads 27 | . 28 28 27 Storage 8 | . 14 14 2 Processor 7 | . 12 14 . Protection 6 | . 1 . 13 Energy Gun 25 | . 27 28 23 Launcher 1 | . . . 2 Naked Turns . | . . . . Heaviest Build 90 | 12 89 87 90 Greatest Support 40 | 40 40 40 40 Greatest Overweight (x) 2 | . 2 2 2 Average Overweight (x) . | . 1 2 . Largest Inventory Capacity 25 | 8 25 25 25 Average Capacity 16 | 6 20 25 8 Most Carried 25 | 5 16 25 24 Average Carried 12 | 2 11 19 7 Final Capacity 25 | 8 25 25 5 Final Carried 24 | 2 16 24 2 Class Distribution -------------------- 92% | Mutant 7% | Scavenger-Mutant Dominant Class ---------------- Mutant | -10/Materials Mutant | -10/Mines Mutant | -10/Subcaves Resources | -11 -10 -10 -10 ----------- Run | Jun Mat Min Sub Matter Collected 445 | 129 206 . 110 Remotely . | . . . . Salvage Created 1130 | . 334 147 649 Parts 67 | . 21 11 35 Haulers Intercepted 1 | . 1 . . Recyclers Shooed . | . . . . Parts Field Recycled . | . . . . Retrieved Matter . | . . . . Parts Self-Destructed 4 | . . . 4 Prevented 2 | . . . 2 Kills | -11 -10 -10 -10 ------- Run | Jun Mat Min Sub Combat Hostiles Destroyed 26 | . 8 5 13 Melee 1 | . . . 1 Guns 23 | . 7 5 11 Classes Destroyed 6 | . 4 1 1 Hauler 1 | . 1 . . Watcher 1 | . 1 . . Swarmer 9 | . 3 3 3 Grunt 7 | . 5 2 . Subdweller 10 | . . . 10 Zionite 1 | . . 1 . Best Kill Streak 4 | . 4 3 3 Combat Bots Only 4 | . 4 3 3 Max Kills in Single Turn 2 | . 1 2 1 Gunslinging 1 | . . 1 . Exploded . | . . . . Melee 1 | . . . 1 Uniques/NPCs Destroyed . | . . . . Combat | -11 -10 -10 -10 -------- Run | Jun Mat Min Sub Damage Taken 2130 | . 410 126 1594 Core 262 | . 84 19 159 Absorbed by Shields . | . . . . Redirected to Shielding 17 | . . . 17 Core Remaining (%) 100 | 100 . . . Volleys Fired 101 | . 29 12 60 Largest 2 | . 2 2 2 Hottest 100 | . 100 100 100 Shots Fired 193 | . 57 24 112 Gun 186 | . 57 24 105 Cannon . | . . . . Launcher 7 | . . . 7 Special . | . . . . Kinetic 9 | . . . 9 Thermal 80 | . 48 24 8 Explosive . | . . . . Electromagnetic 104 | . 9 . 95 Robot Hit Streak 13 | . 11 4 13 Robot Miss Streak 5 | . 5 4 4 Penetration Max . | . . . . Secondary Targets 6 | . 2 2 2 Max Gunslinging Chain 1 | . 1 1 1 Shots Hit Robots 132 | . 33 10 89 Core Hits 49 | . 17 7 25 Critical Kills . | . . . . Critical Parts Destroyed . | . . . . Critical Strikes 5 | . 4 . 1 Burn 4 | . 4 . . Impale 1 | . . . 1 Melee Attacks 11 | . . . 11 Impact 2 | . . . 2 Slashing . | . . . . Piercing 9 | . . . 9 Sneak Attacks . | . . . . Combat Hostiles . | . . . . Follow-up Attacks . | . . . . Damage Inflicted 1746 | . 535 135 1076 Guns 1550 | . 459 135 956 Cannons . | . . . . Explosions 62 | . 62 . . Melee 120 | . . . 120 Ramming 14 | . 14 . . Kinetic 74 | . . . 74 Thermal 648 | . 438 135 75 Explosive . | . . . . Electromagnetic 890 | . 83 . 807 Impact . | . . . . Slashing . | . . . . Piercing 120 | . . . 120 Highest Corruption . | . . . . Average Corruption . | . . . . Corruption Purged . | . . . . Corruption Blocked . | . . . . Overload Shots . | . . . . Overflow Damage . | . . . . Projectiles . | . . . . Explosions . | . . . . Melee . | . . . . Knockbacks . | . . . . Impact . | . . . . Kinetic . | . . . . Secondary . | . . . . Self-Inflicted Damage 61 | . . . 61 Shots 3 | . . . 3 Rammed 3 | . 2 1 . Targets Rammed 3 | . 2 1 . Kicked . | . . . . Crushed . | . . . . Highest Temperature 265 | . 265 159 . Average Temperature 73 | . 74 70 . Received Heat Transfer 438 | . 216 24 198 Siege Activations . | . . . . Robots Corrupted 2 | . . . 2 Combat Hostiles 2 | . . . 2 Parts Fried 6 | . . . 6 Impact Corruptions . | . . . . Robots Melted 1 | . 1 . . Combat Hostiles 1 | . 1 . . Parts Melted 1 | . 1 . . Heat Transferred 2085 | . 1456 407 222 Parts Sabotaged . | . . . . Parts Stolen . | . . . . Parts Stripped . | . . . . Power Chain Reactions 1 | . 1 . . Missiles Intercepted . | . . . . Alert | -11 -10 -10 -10 ------- Run | Jun Mat Min Sub Peak Influence 160 | . 160 123 . Initial 9 | . . 9 . Average 35 | . 51 29 . Maximum Alert Level . | . . . . Low Security (%) 100 | 100 100 100 . Level 1 . | . . . . Level 2 . | . . . . Level 3 . | . . . . Level 4 . | . . . . Level 5 . | . . . . High Security . | . . . . Max Security . | . . . . Squads Dispatched 1 | . 1 . . Investigation . | . . . . Extermination . | . . . . Reinforcement 1 | . 1 . . Assault . | . . . . Garrison . | . . . . Intercept . | . . . . Searches Triggered . | . . . . Construction Impeded . | . . . . Haulers Reinforced . | . . . . Active Scanning Responses . | . . . . Cargo Convoy Interrupts . | . . . . Stealth | -11 -10 -10 -10 --------- Run | Jun Mat Min Sub Distress Signals 1 | . 1 . . Communications Jammed . | . . . . Distress Signals . | . . . . Times Spotted 36 | . 15 7 14 Peak Tracking Total 5 | . 5 3 3 Tactical Retreats 1 | . 1 . . Traps | -11 -10 -10 -10 ------- Run | Jun Mat Min Sub Traps Triggered 2 | . . . 2 Indirectly . | . . . . Trap Hack Attempts . | . . . . Triggered . | . . . . Disarmed . | . . . . Reprogrammed . | . . . . Reused . | . . . . Traps Extracted . | . . . . Installed . | . . . . Triggered . | . . . . Machines | -11 -10 -10 -10 ---------- Run | Jun Mat Min Sub Machines Disabled 1 | . . 1 . Max in Single Turn . | . . . . Machines Repaired . | . . . . Machines Sabotaged . | . . . . Overloaded Fab Kills . | . . . . Hacking | -11 -10 -10 -10 --------- Run | Jun Mat Min Sub Machines Accessed 2 | . 2 . . Terminals 2 | . 2 . . Fabricators . | . . . . Repair Stations . | . . . . Recycling Units . | . . . . Scanalyzers . | . . . . Garrison Access . | . . . . Total Hacks 4 | . 4 . . Successful 2 | . 2 . . Failed 2 | . 2 . . Catastrophic . | . . . . Database Lockouts . | . . . . Manual 2 | . 2 . . Terminals 4 | . 4 . . Fabricators . | . . . . Repair Stations . | . . . . Recycling Units . | . . . . Scanalyzers . | . . . . Garrison Access . | . . . . Terminal Hacks 2 | . 2 . . Record 1 | . 1 . . Terminal Index 1 | . 1 . . Fabricator Hacks . | . . . . Repair Station Hacks . | . . . . Recycling Unit Hacks . | . . . . Scanalyzer . | . . . . Garrison Access Hacks . | . . . . Unauthorized Hacks . | . . . . Terminals . | . . . . Fabricators . | . . . . Repair Stations . | . . . . Recycling Units . | . . . . Scanalyzers . | . . . . Garrison Access . | . . . . Data Cores Recovered . | . . . . Used . | . . . . Hacking Detections 1 | . 1 . . Full Trace Events . | . . . . Feedback Events . | . . . . Feedback Blocked . | . . . . Robot Schematics Acquired . | . . . . Robots Built . | . . . . Authchips . | . . . . Time . | . . . . Total Robot Build Rating . | . . . . Part Schematics Acquired . | . . . . Parts Built . | . . . . Authchips . | . . . . Time . | . . . . Total Part Build Rating . | . . . . Parts Repaired . | . . . . Time . | . . . . Parts Recycled . | . . . . Recycled Matter . | . . . . Retrieved Matter . | . . . . Retrieved Components . | . . . . Parts Scanalyzed . | . . . . Part Schematics Acquired . | . . . . Parts Damaged . | . . . . Bothacking | -11 -10 -10 -10 ------------ Run | Jun Mat Min Sub Used RIF Installer . | . . . . Robots Hacked . | . . . . Non-combat . | . . . . Combat . | . . . . Robot Hacks Applied . | . . . . Relay Couplers Released . | . . . . Fabnet Peak Effective % . | . . . . Robots Rewired . | . . . . Allies Hacked . | . . . . Hacks Repelled . | . . . . Allies | -11 -10 -10 -10 -------- Run | Jun Mat Min Sub Total Allies 2 | . . 2 . Largest Group 2 | . . 2 . Highest-Rated Group 46 | . . 46 . Highest-Rated Ally 31 | . . 31 . Total Orders . | . . . . Ally Attacks 12 | . . 12 . Total Damage 166 | . . 166 . Kills 3 | . . 3 . Allies Corrupted . | . . . . Allies Melted . | . . . . Intel | -11 -10 -10 -10 ------- Run | Jun Mat Min Sub Robot Analysis Total . | . . . . Derelict Logs Recovered 3 | . . 2 1 Drone Launches . | . . . . Drone Recoveries . | . . . . Exploration | -11 -10 -10 -10 ------------- Run | Jun Mat Min Sub Turns Passed 5958 | 70 1045 2128 2715 Spaces Moved 2441 | 39 359 643 1400 Core 11 | 5 . . 6 Treads 2430 | 34 359 643 1394 Legs . | . . . . Wheels . | . . . . Hover . | . . . . Flight . | . . . . Fastest Speed 50 | 50 160 320 50 Average Speed 223 | 145 257 320 173 Slowest Speed 320 | 160 320 320 320 Overloaded Moves . | . . . . Propulsion Burnouts . | . . . . Robots Hopped . | . . . . Cave-ins Triggered . | . . . . Exploration Rate (%) 56 | 3 68 96 58 Regions Visited 3 Branch Regions 2 Pre-discovered Areas 2 | . . 1 1 Known Exits Taken . | . . . . Unknown Exits Taken 3 | 1 1 1 . Scrap Searched 2 | . . 2 . Spaces Dug 14 | . . . 14 Terrain Destroyed 93 | . 10 . 83 Melee 1 | . . . 1 Projectile . | . . . . AOE 92 | . 10 . 82 Terrain Rammed . | . . . . Walls Destroyed . | . . . . Machines Disabled . | . . . . Actions | -11 -10 -10 -10 --------- Run | Jun Mat Min Sub Total 2727 | 52 421 689 1565 Wait 74 | . 3 23 48 Move 2438 | 38 358 642 1400 Hop . | . . . . Pick Up 43 | 8 18 9 8 Fast Attach 2 | . 1 . 1 Attach 18 | 6 3 1 8 Detach . | . . . . Swap 13 | . 4 . 9 Drop 12 | . 3 1 8 Fire 101 | . 29 12 60 Melee 11 | . . . 11 Ram . | . . . . Kick . | . . . . Crush 3 | . 2 1 . Escape Stasis . | . . . . Rewire . | . . . . Trap . | . . . . Miscellaneous 12 | . . . 12 Route ------- -11/Junkyard -10/Materials (discovered 5 exits: [*Mat x2] / [*Min x2] / [*Sub]) -10/Mines (discovered 3 exits: [*Mat x2] / [*Sub]) -10/Subcaves (discovered 2 exits: [*Mat x2]) History --------- Turn | Location | Event 12 | -11/Junkyard | Discovered new exit (range 16) 71 | -11/Junkyard | Entered Materials 232 | -10/Materials | Discovered new exit (range 12) 299 | -10/Materials | Discovered new exit (range 16) 313 | -10/Materials | Build established: Mutant 464 | -10/Materials | Discovered new exit (range 9) 586 | -10/Materials | Discovered new exit (range 13) 715 | -10/Materials | Discovered new exit (range 16) 1116 | -10/Materials | Entered Mines 1161 | -10/Mines | Learned location of Mines (-8) 1212 | -10/Mines | Discovered new exit (range 13) 1643 | -10/Mines | Discovered new exit (range 5) 1907 | -10/Mines | Discovered new exit (range 5) 2528 | -10/Mines | A weapon hastily lodged in a ceiling crevice suddenly fell to the ground 2634 | -10/Mines | Learned 2 Materials zone layouts 2717 | -10/Mines | Found a damaged Exp. Sensor Array with a note attached 2724 | -10/Mines | Found Prototype Device 3244 | -10/Mines | Entered Subcaves 4357 | -10/Subcaves | Core integrity fell below 50% 4539 | -10/Subcaves | Learned 2 Materials zone layouts 4539 | -10/Subcaves | Discovered new exit (range 9) 5454 | -10/Subcaves | A swath of the cavern ceiling suddenly collapsed 5530 | -10/Subcaves | Shifting Twisted Machinery released Battle Cannon 5547 | -10/Subcaves | Shifting Twisted Machinery released Mak. Sword 5664 | -10/Subcaves | Discovered new exit (range 12) 5688 | -10/Subcaves | Learned location of Zion (-6) 5688 | -10/Subcaves | Met a Zionite searching for "candidates" 5783 | -10/Subcaves | Build established: Scavenger-Mutant 5949 | -10/Subcaves | Core integrity fell below 20% 5959 | -10/Subcaves | Destroyed by WQ-YUC(R) with Subdweller Laser Last Messages --------------- 05664_ EXIT=FOUND 05687_ HF-267(z): "She is not going to be happy we haven't found any suitable candidates yet." 05688_ HF-267(z): "Hey you! It's really dangerous down here, I feel that you could die at any moment. For your health and safety might I suggest a trip to Zion?" World map updated: -6/Zion. 05918_ Scrap Shield Fragment affixed to Scrap Shield (+7). 05924_ Lgt. Treads destroyed. 05925_ Hvy. EM Pulse Gun destroyed. 05925_ Scrap Shield destroyed. 05930_ 7I-BWJ(R) destroyed. 05930_ Switching to secondary target: 4X-LKV(R). 05931_ Mak. Shrapnel Gun destroyed. 05935_ Hvy. EM Pulse Gun destroyed. 05937_ Wheel destroyed. 05937_ Lgt. Treads destroyed. 05938_ 4X-LKV(R) suffers critical hit (Impale). 05943_ 4X-LKV(R) destroyed. 05951_ Lgt. Ion Engine destroyed. Map ----- +----------------------------------------------------+ | ??????????????????????????????? | | ??????????????????????????????? | | ??????????????????????????????? | | ??????????????????????????????? | | ??????????????????????????????? | | ??????????????????????????????? | | ??????????????????????????????? | | ??????????????????????????????? | | ??????????????????????????????? | | ??????????????????????????????? | | ??????????????????????????????? | | ??????????????????????????????? | | ???????????????????? ?????????? | | ??????????????????? #????????? | | ??????????????????? #????????? | | ??????????????????? ????????? | | ??????????????????# ##???????? | | ??????????????????# #???????? | | ??????????????????# #???????? | | ?????????????????? #???????? | | ??????????????????# ##???????? | | ?????###########?## ##??????? | | ????##< << <# ## #??????? | | ????#< <<&%& ;# #??????? | | ????#R !!= " #???????? | | ????#<@<<<%[ "#???????? | | ????# << &#* "###?????? | | ????# <<<<##"" ##????? | | ????#< <#" #####? | | ????# <#" ""# #? | | ????#$ <#" "#### # | | ????# $ ## ##??# | | ????# $<###### #???# #???? | | ????#$ $ <#?????# ##### #???? | | ?????$ ??????## # #???? | | ????##$$<